Workbook

Sheet Potencia Inst y Efect
B2: Sistemas Aislados
B3: Potencia instalada y efectiva al 31 de diciembre de 2018
A5: 1 | B5: =+A5+1 -> 2 | C5: 3 | D5: 4 | E5: 5 | F5: 6 | G5: 7 | H5: 8 | I5: 9 | J5: 10 | K5: 11 | L5: 12 | M5: 13 | N5: 14 | O5: 15 | P5: 16 | Q5: 17 | R5: 18 | S5: 19 | T5: 20 | U5: 21 | V5: 22 | W5: 23
I6: Potencia Instalada | S6: Potencia Efectiva a Temp. media
B7: Departamento | C7: Provincia | D7: Sistema Electrico | E7: Empresa | F7: Combustible | H7: Central | I7: (MVA) | N7: (MW) | S7: °C | T7: (MW)
I8: Hidro | J8: Termo | K8: E. Alternativas | L8: Total | N8: Hidro | O8: Termo | P8: E. Alternativas | Q8: Total | T8: Hidro | U8: Termo | V8: E. Alternativas | W8: Total
A9: 1 | B9: Pando | C9: Nicolas Suarez | D9: Cobija | E9: ENDE | F9: Diesel | H9: Cobija | J9: 28.2 | L9: 28.2 | O9: 22.56 | Q9: 22.56 | S9: 40° | U9: 19.5 | W9: 19.5
A10: 2 | B10: Pando | C10: Madre de Dios | D10: El Sena | E10: ENDE | F10: Diesel | H10: El Sena | J10: 2.767 | L10: 2.767 | O10: 2.216 | Q10: 2.216 | S10: 40° | U10: 1.3 | W10: 1.3
A11: 3 | B11: Pando | C11: Madre de Dios | D11: Puerto Gonzalo Moreno | E11: ENDE | F11: Diesel | J11: =O11*(J10/O10) -> 1.685672383 | L11: =+J11 -> 1.685672383 | O11: 1.35 | Q11: =SUM(O10:P10) -> 2.216 | S11: 40° | U11: =O11*(U10/O10) -> 0.791967509 | W11: =SUM(U11:V11) -> 0.791967509
A12: 4 | B12: Pando | C12: Federico Roman | D12: Municipio de Villa Nueva | E12: ENDE | F12: Diesel | J12: =O12*(J11/O11) -> 1.123781588 | L12: =+J12 -> 1.123781588 | O12: 0.9 | Q12: =SUM(O11:P11) -> 1.35 | S12: 40° | U12: =O12*(U11/O11) -> 0.5279783394 | W12: =SUM(U12:V12) -> 0.5279783394
A13: S1 | B13: Pando | C13: Nicolas Suarez | D13: Planta Solar Cobija | E13: ENDE Guaracachi S.A. | F13: Solar | H13: Planta Solar Cobija | K13: 5.1 | L13: 5.1 | P13: 5.1 | Q13: 5.1 | S13: 31° | V13: 4.8 | W13: 4.8
A14: S2 | B14: Pando | C14: Madre de Dios | D14: Planta Solar El Sena | E14: ENDE Guaracachi S.A. | F14: Solar | H14: Planta Solar El sena | K14: 0.4 | P14: 0.4
H15: Total Pando | J15: =SUM(J9:J14) -> 33.77645397 | K15: =SUM(K9:K14) -> 5.5 | L15: =SUM(L9:L14) -> 38.87645397 | O15: =SUM(O9:O14) -> 27.026 | P15: =SUM(P9:P14) -> 5.5 | Q15: =SUM(Q9:Q14) -> 33.442 | U15: =SUM(U9:U14) -> 22.11994585 | V15: =SUM(V9:V14) -> 4.8 | W15: =SUM(W9:W14) -> 26.91994585
A16: 5 | B16: Beni | C16: Vaca Diez | D16: Riberalta | E16: CER Ltda. | F16: Diesel | H16: El Palmar | J16: 22.03 | L16: 22.03 | O16: 16.12 | Q16: 16.12 | S16: 37° | U16: 15.78 | W16: 15.78
A17: =+A16+1 -> 6 | B17: Beni | C17: Vaca Diez | D17: Guayaramerín | E17: ENDE DELBENI S.A.M. | F17: Diesel | H17: Guayaramerín | J17: 22.35 | L17: 22.35 | O17: 17.255 | Q17: 17.255 | S17: 36° | U17: 15.446 | W17: 15.446
A18: 7 | B18: Beni | C18: Vaca Diez | D18: Cachuela Esperanza | E18: ENDE DELBENI S.A.M. | F18: Diesel | H18: Cachuela Esperanza | J18: 0.809 | L18: 0.809 | O18: 0.647 | Q18: 0.647 | S18: 36° | U18: 0.5176 | W18: 0.5176
A19: 8 | B19: Beni | C19: Vaca Diez | D19: Rosario del Yata | E19: ENDE DELBENI S.A.M. | F19: Diesel | H19: Rosario del Yata | J19: 1.208 | L19: 1.208 | O19: 0.9664 | Q19: 0.9664 | S19: 36° | U19: 0.77312 | W19: 0.77312
A20: 9 | B20: Beni | C20: Mamore | D20: Puerto Ustárez | E20: ENDE DELBENI S.A.M. | F20: Diesel | H20: Puerto Ustárez | J20: 0.235 | L20: 0.235 | O20: 0.188 | Q20: 0.188 | S20: 34° | U20: 0.141 | W20: 0.141
A21: 10 | B21: Beni | C21: Itenez | D21: Baures | E21: ENDE DELBENI S.A.M. | F21: Diesel | H21: Baures | J21: 2.263 | L21: 2.263 | O21: 1.81 | Q21: 1.81 | S21: 33° | U21: 1.433 | W21: 1.433
A22: 11 | B22: Beni | C22: Itenez | D22: Bella Vista | E22: ENDE DELBENI S.A.M. | F22: Diesel | H22: Bella Vista | J22: 1.774 | L22: 1.774 | O22: 1.426 | Q22: 1.426 | S22: 33° | U22: 1.111 | W22: 1.111
A23: 12 | B23: Beni | C23: Itenez | D23: Huacaraje | E23: ENDE DELBENI S.A.M. | F23: Diesel | H23: Huacaraje | J23: 0.58 | L23: 0.58 | O23: 0.464 | Q23: 0.464 | S23: 33° | U23: 0.398 | W23: 0.398
A24: 13 | B24: Beni | C24: Itenez | D24: El Carmen | E24: ENDE DELBENI S.A.M. | F24: Diesel | H24: El Carmen de Iténez | J24: 0.16 | L24: 0.16 | O24: 0.128 | Q24: 0.128 | S24: 32° | U24: 0.096 | W24: 0.096
A25: 14 | B25: Beni | C25: Yacuma | D25: Exaltación | E25: ENDE DELBENI S.A.M. | F25: Diesel | H25: Exaltación | J25: 0.35 | L25: 0.35 | O25: 0.28 | Q25: 0.28 | S25: 36° | U25: 0.23 | W25: 0.23
H26: Total Beni | J26: =SUM(J16:J25) -> 51.759 | K26: =SUM(K16:K25) -> 0 | L26: =SUM(L16:L25) -> 51.759 | O26: =SUM(O16:O25) -> 39.2844 | P26: =SUM(P16:P25) -> 0 | Q26: =SUM(Q16:Q25) -> 39.2844 | U26: =SUM(U16:U25) -> 35.92572 | V26: =SUM(V16:V25) -> 0 | W26: =SUM(W16:W25) -> 35.92572
A27: =+A25+1 -> 15 | B27: Santa Cruz | C27: Angel Sandoval | D27: San Matías | E27: ENDE Guaracachi S.A. | F27: Gas | H27: San Matías | J27: 10.556 | L27: 10.556 | O27: 8.68 | Q27: 8.68 | S27: 25° | U27: 7.322 | W27: 7.322
A28: =+A27+1 -> 16 | B28: Santa Cruz | C28: Cordillera | D28: Camiri | E28: CRE Ltda. | F28: Gas | H28: Cordillera | J28: 15.83 | L28: 15.83 | O28: 12.674 | Q28: 12.674 | S28: 35,5° | U28: 11.75 | W28: 11.75
A29: 17 | B29: Santa Cruz | C29: Guarayos | D29: Las Misiones | E29: CRE Ltda. | F29: Gas/Diesel | H29: Las Misiones | J29: 27.8 | L29: 27.8 | O29: 21.35 | Q29: 21.35 | S29: 32° | U29: 19.05 | W29: 19.05
A30: 18 | B30: Santa Cruz | C30: Chiquitos | D30: Roboré y Santiago de Chiquitos | E30: CRE Ltda. | F30: Gas | H30: Chiquitos | J30: 9.88 | L30: 9.88 | O30: 7.54 | Q30: 7.54 | S30: 35° | U30: 7.2 | W30: 7.2
A31: 19 | B31: Santa Cruz | C31: Jose Miguel de Velasco | D31: San Ignacio de Velasco | E31: CRE Ltda. | F31: Diesel | H31: San Ignacio de Velasco | J31: 9.8 | L31: 9.8 | O31: 7.84 | Q31: 7.84 | S31: 30° | U31: 6.792 | W31: 6.792
A32: 20 | B32: Santa Cruz | C32: Vallegrande | D32: Valles Cruceños | E32: CRE Ltda. | F32: Gas | H32: Valles | J32: 14.5475 | L32: 14.5475 | O32: 11.638 | Q32: 11.638 | S32: 35° | U32: 9.56 | W32: 9.56
A33: 21 | B33: Santa Cruz | C33: Cordillera | D33: Charagua | E33: CRE Ltda. | F33: Gas | H33: Charagua | J33: 3.13 | L33: 3.13 | O33: 2.554 | Q33: 2.554 | S33: 35° | U33: 2.19 | W33: 2.19
A34: 22 | B34: Santa Cruz | C34: German Bush | D34: German Busch | E34: CRE Ltda. | F34: Gas | H34: German Busch | J34: 28.985 | L34: 28.985 | O34: 23.2 | Q34: 23.2 | S34: 33,5° | U34: 19.1 | W34: 19.1
A35: 23 | B35: Santa Cruz | C35: Cordillera | D35: El Espino | E35: CRE Ltda. | F35: Solar/Diesel | H35: (1) El Espino | J35: 0.08 | K35: 0.06 | L35: 0.14 | O35: 0.064 | P35: 0.06 | Q35: 0.124 | S35: 35,5° | U35: 0.065 | V35: 0.059 | W35: 0.124
H36: Total Santa Cruz | J36: =SUM(J27:J35) -> 120.6085 | K36: =SUM(K27:K35) -> 0.06 | L36: =SUM(L27:L35) -> 120.6685 | O36: =SUM(O27:O35) -> 95.54 | P36: =SUM(P27:P35) -> 0.06 | Q36: =SUM(Q27:Q35) -> 95.6 | U36: =SUM(U27:U35) -> 83.029 | V36: =SUM(V27:V35) -> 0.059 | W36: =SUM(W27:W35) -> 83.088
A37: =+A35+1 -> 24 | B37: Tarija | C37: Aniceto Arce | D37: Bermejo | E37: SETAR | F37: Gas | H37: Bermejo | J37: 18.056 | L37: 18.056 | O37: 14.444 | Q37: 14.444 | S37: 30° | U37: 11.55 | W37: 11.55
A38: =+A37+1 -> 25 | B38: Tarija | C38: Burnet O'Connor | D38: Entre Rios | E38: SETAR | F38: Gas | H38: Entre Ríos | J38: 2.974 | L38: 2.974 | O38: 2.7 | Q38: 2.7 | S38: 25° | U38: 2.28 | W38: 2.28
A39: =+A38+1 -> 26 | B39: Tarija | C39: Eustaquio Mendez | D39: El Puente | E39: Gas & Electricidad S.A. | F39: Gas | H39: El Puente | J39: 2.2 | L39: 2.2 | O39: 1.92 | Q39: 1.92 | S39: 25° | U39: 1.6 | W39: 1.6
H40: Total Tarija | J40: =SUM(J37:J39) -> 23.23 | K40: =SUM(K37:K39) -> 0 | L40: =SUM(L37:L39) -> 23.23 | O40: =SUM(O37:O39) -> 19.064 | P40: =SUM(P37:P39) -> 0 | Q40: =SUM(Q37:Q39) -> 19.064 | U40: =SUM(U37:U39) -> 15.43 | V40: =SUM(V37:V39) -> 0 | W40: =SUM(W37:W39) -> 15.43
H41: Total Bolivia | J41: =+J40+J36+J26+J15 -> 229.373954 | K41: =+K40+K36+K26+K15 -> 5.56 | L41: =+L40+L36+L26+L15 -> 234.533954 | O41: =+O40+O36+O26+O15 -> 180.9144 | P41: =+P40+P36+P26+P15 -> 5.56 | Q41: =+Q40+Q36+Q26+Q15 -> 187.3904 | U41: =+U40+U36+U26+U15 -> 156.5046658 | V41: =+V40+V36+V26+V15 -> 4.859 | W41: =+W40+W36+W26+W15 -> 161.3636658

Sheet Clasificacion
B3: Demanda Máxima (kW) y Número de Consumidores de los sistemas Aislados
B4: Gestión 2018
B5: Empresa Eléctrica | C5: Sistema | D5: Demanda Máxima (kW) | E5: Número de Consumidores | F5: Combustible | G5: Potencia Instalada (MW) | J5: Sistema | K5: Demanda Máxima (kW) | L5: Número de Consumidores | M5: Combustible | N5: Potencia Instalada (MW) | Q5: Sistema | R5: Demanda Máxima (kW) | S5: Número de Consumidores | T5: Combustible | U5: Potencia Instalada (MW) | X5: Sistema | Y5: Demanda Máxima (kW) | Z5: Número de Consumidores | AA5: Combustible | AB5: Potencia Instalada (MW) | AE5: Sistema | AF5: Demanda Máxima (kW) | AG5: Número de Consumidores | AH5: Combustible | AI5: Potencia Instalada (MW)
A6: 1 | B6: ENDE | C6: Cobija | D6: 12360 | E6: 17092 | F6: =+F19 -> Diesel/Solar | G6: 27.66 | J6: Cobija | K6: 12360 | L6: 17092 | M6: Diesel/Solar | N6: 27.66 | O6: > a 15 MW | Q6: Cobija | R6: 12360 | S6: 17092 | T6: Diesel/Solar | U6: 27.66 | V6: > 10 MW | X6: Las Misiones | Y6: 11739.85521 | Z6: 28263 | AA6: Diesel / Gas | AB6: 21.35 | AC6: > a 15000 consumidores | AE6: Riberalta | AF6: 9824 | AG6: 21407 | AH6: Diesel | AI6: 16.12
A7: =+A6+1 -> 2 | C7: El Sena | D7: 673 | E7: 976 | F7: =+F19 -> Diesel/Solar | G7: 2.216 | J7: German Busch | K7: 10252.71 | L7: 10771 | M7: Gas | N7: 23.2 | Q7: Las Misiones | R7: 11739.85521 | S7: 28263 | T7: Diesel / Gas | U7: 21.35 | X7: Valles Cruceños | Y7: 6340.804 | Z7: 23104 | AA7: Gas | AB7: 11.638 | AE7: San Ignacio de Velasco | AF7: 5050.678 | AG7: 12184 | AH7: Diesel | AI7: 7.84
A8: =+A7+1 -> 3 | C8: Gonzalo Moreno | E8: 20 | F8: Diesel | G8: 2.216 | J8: Las Misiones | K8: 11739.85521 | L8: 28263 | M8: Diesel / Gas | N8: 21.35 | Q8: German Busch | R8: 10252.71 | S8: 10771 | T8: Gas | U8: 23.2 | X8: Riberalta | Y8: 9824 | Z8: 21407 | AA8: Diesel | AB8: 16.12 | AE8: Guayaramerín | AF8: 5140 | AG8: 9030 | AH8: Diesel | AI8: 17.255
A9: 4 | C9: Villa Nueva | E9: 196 | F9: Diesel | G9: 1.35 | J9: Guayaramerín | K9: 5140 | L9: 9030 | M9: Diesel | N9: 17.255 | Q9: Riberalta | R9: 9824 | S9: 21407 | T9: Diesel | U9: 16.12 | V9: Entre 5 y 10 MW | X9: Cobija | Y9: 12360 | Z9: 17092 | AA9: Diesel/Solar | AB9: 27.66 | AE9: Baures | AF9: 210 | AG9: 953 | AH9: Diesel | AI9: 1.81
A10: 5 | C10: Guayaramerín | D10: 5140 | E10: 9030 | F10: Diesel | G10: 17.255 | J10: Riberalta | K10: 9824 | L10: 21407 | M10: Diesel | N10: 16.12 | Q10: Cordillera | R10: 6377.97 | S10: 14957 | T10: Gas | U10: 12.674 | X10: Cordillera | Y10: 6377.97 | Z10: 14957 | AA10: Gas | AB10: 12.674 | AC10: Entre 10000 y 15000 consumidores | AE10: Bella Vista | AF10: 202 | AG10: 702 | AH10: Diesel | AI10: 1.426
A11: 6 | C11: Cachuela Esperanza | D11: 47 | E11: 148 | F11: Diesel | G11: 0.647 | J11: Bermejo | K11: 6100 | L11: 12941 | M11: Gas | N11: 14.444 | O11: 10 a 15 MW | Q11: Valles Cruceños | R11: 6340.804 | S11: 23104 | T11: Gas | U11: 11.638 | X11: Bermejo | Y11: 6100 | Z11: 12941 | AA11: Gas | AB11: 14.444 | AE11: Huacaraje | AF11: 159 | AG11: 505 | AH11: Diesel | AI11: 0.464
A12: 7 | C12: Rosario del Yata | D12: 48 | E12: 148 | F12: Diesel | G12: 0.9664 | J12: Cordillera | K12: 6377.97 | L12: 14957 | M12: Gas | N12: 12.674 | Q12: Bermejo | R12: 6100 | S12: 12941 | T12: Gas | U12: 14.444 | X12: San Ignacio de Velasco | Y12: 5050.678 | Z12: 12184 | AA12: Diesel | AB12: 7.84 | AE12: El Carmen de Itenez | AF12: 77.3 | AG12: 218 | AH12: Diesel | AI12: 0.128
A13: 8 | C13: Puerto Ustarez | D13: 8.91 | E13: 38 | F13: Diesel | G13: 0.188 | J13: Valles Cruceños | K13: 6340.804 | L13: 23104 | M13: Gas | N13: 11.638 | Q13: Guayaramerín | R13: 5140 | S13: 9030 | T13: Diesel | U13: 17.255 | X13: German Busch | Y13: 10252.71 | Z13: 10771 | AA13: Gas | AB13: 23.2 | AE13: Villa Nueva | AF13: Sin datos | AG13: 196 | AH13: Diesel | AI13: 1.35
A14: 9 | B14: ENDE DELBENI S.A.M. | C14: Baures | D14: 210 | E14: 953 | F14: Diesel | G14: 1.81 | J14: San Matías | K14: 1676.7 | L14: 2875 | M14: Gas | N14: 8.68 | O14: < a 10 MW | Q14: San Ignacio de Velasco | R14: 5050.678 | S14: 12184 | T14: Diesel | U14: 7.84 | X14: Guayaramerín | Y14: 5140 | Z14: 9030 | AA14: Diesel | AB14: 17.255 | AC14: Entre 1000 y 10000 consumidores | AE14: Exaltación | AF14: 74 | AG14: 159 | AH14: Diesel | AI14: 0.28
A15: 10 | C15: Bella Vista | D15: 202 | E15: 702 | F15: Diesel | G15: 1.426 | J15: San Ignacio de Velasco | K15: 5050.678 | L15: 12184 | M15: Diesel | N15: 7.84 | Q15: Chiquitos | R15: 4380.218 | S15: 8470 | T15: Gas | U15: 7.54 | V15: Menor a 5 MW | X15: Chiquitos | Y15: 4380.218 | Z15: 8470 | AA15: Gas | AB15: 7.54 | AE15: Rosario del Yata | AF15: 48 | AG15: 148 | AH15: Diesel | AI15: 0.9664
A16: 11 | C16: Huacaraje | D16: 159 | E16: 505 | F16: Diesel | G16: 0.464 | J16: Chiquitos | K16: 4380.218 | L16: 8470 | M16: Gas | N16: 7.54 | Q16: Entre Ríos | R16: 1700 | S16: 5436 | T16: Gas | U16: 2.7 | X16: Entre Ríos | Y16: 1700 | Z16: 5436 | AA16: Gas | AB16: 2.7 | AE16: Cachuela Esperanza | AF16: 47 | AG16: 148 | AH16: Diesel | AI16: 0.647
A17: 12 | C17: El Carmen de Itenez | D17: 77.3 | E17: 218 | F17: Diesel | G17: 0.128 | J17: Entre Ríos | K17: 1700 | L17: 5436 | M17: Gas | N17: 2.7 | Q17: San Matías | R17: 1676.7 | S17: 2875 | T17: Gas | U17: 8.68 | X17: Charagua | Y17: 1107 | Z17: 3253 | AA17: Gas | AB17: 2.554 | AE17: Puerto Ustarez | AF17: 8.91 | AG17: 38 | AH17: Diesel | AI17: 0.188
A18: 13 | C18: Exaltación | D18: 74 | E18: 159 | F18: Diesel | G18: 0.28 | J18: Charagua | K18: 1107 | L18: 3253 | M18: Gas | N18: 2.554 | Q18: Charagua | R18: 1107 | S18: 3253 | T18: Gas | U18: 2.554 | X18: San Matías | Y18: 1676.7 | Z18: 2875 | AA18: Gas | AB18: 8.68 | AE18: Gonzalo Moreno | AF18: Sin datos | AG18: 20 | AH18: Diesel | AI18: 2.216
A19: 14 | B19: CRE R.L. | C19: El Espino | D19: 31.62 | E19: 133 | F19: Diesel/Solar | G19: 0.124 | J19: El Sena | K19: 673 | L19: 976 | M19: Diesel/Solar | N19: 2.216 | Q19: El Sena | R19: 673 | S19: 976 | T19: Diesel/Solar | U19: 2.216 | X19: El Sena | Y19: 673 | Z19: 976 | AA19: Diesel/Solar | AB19: 2.216 | AC19: Menores a 1000 consumidores | AE19: Las Misiones | AF19: 11739.85521 | AG19: 28263 | AH19: Diesel / Gas | AI19: 21.35
A20: 15 | C20: Charagua | D20: 1107 | E20: 3253 | F20: Gas | G20: 2.554 | J20: Gonzalo Moreno | K20: Sin datos | L20: 20 | M20: Diesel | N20: 2.216 | Q20: Baures | R20: 210 | S20: 953 | T20: Diesel | U20: 1.81 | X20: Baures | Y20: 210 | Z20: 953 | AA20: Diesel | AB20: 1.81 | AE20: Cobija | AF20: 12360 | AG20: 17092 | AH20: Diesel/Solar | AI20: 27.66
A21: 16 | C21: Chiquitos | D21: 4380.218 | E21: 8470 | F21: Gas | G21: 7.54 | J21: EL Puente | K21: Sin datos | L21: Sin datos | M21: Gas | N21: 1.92 | Q21: Bella Vista | R21: 202 | S21: 702 | T21: Diesel | U21: 1.426 | X21: Bella Vista | Y21: 202 | Z21: 702 | AA21: Diesel | AB21: 1.426 | AE21: El Sena | AF21: 673 | AG21: 976 | AH21: Diesel/Solar | AI21: 2.216
A22: 17 | C22: San Ignacio de Velasco | D22: 5050.678 | E22: 12184 | F22: Diesel | G22: 7.84 | J22: Baures | K22: 210 | L22: 953 | M22: Diesel | N22: 1.81 | Q22: Huacaraje | R22: 159 | S22: 505 | T22: Diesel | U22: 0.464 | X22: Huacaraje | Y22: 159 | Z22: 505 | AA22: Diesel | AB22: 0.464 | AE22: El Espino | AF22: 31.62 | AG22: 133 | AH22: Diesel/Solar | AI22: 0.124
A23: 18 | C23: Cordillera | D23: 6377.97 | E23: 14957 | F23: Gas | G23: 12.674 | J23: Bella Vista | K23: 202 | L23: 702 | M23: Diesel | N23: 1.426 | Q23: El Carmen de Itenez | R23: 77.3 | S23: 218 | T23: Diesel | U23: 0.128 | X23: El Carmen de Itenez | Y23: 77.3 | Z23: 218 | AA23: Diesel | AB23: 0.128 | AE23: Valles Cruceños | AF23: 6340.804 | AG23: 23104 | AH23: Gas | AI23: 11.638
A24: 19 | C24: Valles Cruceños | D24: 6340.804 | E24: 23104 | F24: Gas | G24: 11.638 | J24: Villa Nueva | K24: 0 | L24: 196 | M24: Diesel | N24: 1.35 | Q24: Exaltación | R24: 74 | S24: 159 | T24: Diesel | U24: 0.28 | X24: Villa Nueva | Y24: Sin datos | Z24: 196 | AA24: Diesel | AB24: 1.35 | AE24: Cordillera | AF24: 6377.97 | AG24: 14957 | AH24: Gas | AI24: 12.674
A25: 20 | C25: Las Misiones | D25: 11739.85521 | E25: 28263 | F25: Diesel / Gas | G25: 21.35 | J25: Rosario del Yata | K25: 48 | L25: 148 | M25: Diesel | N25: 0.9664 | Q25: Rosario del Yata | R25: 48 | S25: 148 | T25: Diesel | U25: 0.9664 | X25: Exaltación | Y25: 74 | Z25: 159 | AA25: Diesel | AB25: 0.28 | AE25: Bermejo | AF25: 6100 | AG25: 12941 | AH25: Gas | AI25: 14.444
A26: 21 | C26: German Busch | D26: 10252.71 | E26: 10771 | F26: Gas | G26: 23.2 | J26: Cachuela Esperanza | K26: 47 | L26: 148 | M26: Diesel | N26: 0.647 | Q26: Cachuela Esperanza | R26: 47 | S26: 148 | T26: Diesel | U26: 0.647 | X26: Rosario del Yata | Y26: 48 | Z26: 148 | AA26: Diesel | AB26: 0.9664 | AE26: German Busch | AF26: 10252.71 | AG26: 10771 | AH26: Gas | AI26: 23.2
A27: 22 | B27: CER | C27: Riberalta | D27: 9824 | E27: 21407 | F27: Diesel | G27: 16.12 | J27: Huacaraje | K27: 159 | L27: 505 | M27: Diesel | N27: 0.464 | Q27: El Espino | R27: 31.62 | S27: 133 | T27: Diesel/Solar | U27: 0.124 | X27: Cachuela Esperanza | Y27: 47 | Z27: 148 | AA27: Diesel | AB27: 0.647 | AE27: Chiquitos | AF27: 4380.218 | AG27: 8470 | AH27: Gas | AI27: 7.54
A28: 23 | B28: SETAR | C28: Bermejo | D28: 6100 | E28: 12941 | F28: Gas | G28: 14.444 | J28: Exaltación | K28: 74 | L28: 159 | M28: Diesel | N28: 0.28 | Q28: Puerto Ustarez | R28: 8.91 | S28: 38 | T28: Diesel | U28: 0.188 | X28: El Espino | Y28: 31.62 | Z28: 133 | AA28: Diesel/Solar | AB28: 0.124 | AE28: Entre Ríos | AF28: 1700 | AG28: 5436 | AH28: Gas | AI28: 2.7
A29: 24 | C29: Entre Ríos | D29: 1700 | E29: 5436 | F29: Gas | G29: 2.7 | J29: Puerto Ustarez | K29: 8.91 | L29: 38 | M29: Diesel | N29: 0.188 | Q29: Gonzalo Moreno | R29: Sin datos | S29: 20 | T29: Diesel | U29: 2.216 | X29: Puerto Ustarez | Y29: 8.91 | Z29: 38 | AA29: Diesel | AB29: 0.188 | AE29: Charagua | AF29: 1107 | AG29: 3253 | AH29: Gas | AI29: 2.554
A30: 25 | C30: EL Puente | F30: Gas | G30: 1.92 | J30: El Carmen de Itenez | K30: 77.3 | L30: 218 | M30: Diesel | N30: 0.128 | Q30: EL Puente | R30: =+R29 -> Sin datos | S30: =+R30 -> Sin datos | T30: Gas | U30: 1.92 | X30: Gonzalo Moreno | Y30: Sin datos | Z30: 20 | AA30: Diesel | AB30: 2.216 | AE30: San Matías | AF30: 1676.7 | AG30: 2875 | AH30: Gas | AI30: 8.68
A31: 26 | B31: ENDE GUARACACHI S.A. | C31: San Matías | D31: 1676.7 | E31: 2875 | F31: Gas | G31: 8.68 | J31: El Espino | K31: 31.62 | L31: 133 | M31: Diesel/Solar | N31: 0.124 | Q31: Villa Nueva | R31: =+R30 -> Sin datos | S31: 196 | T31: Diesel | U31: 1.35 | X31: EL Puente | Y31: Sin datos | Z31: Sin datos | AA31: Gas | AB31: 1.92 | AE31: EL Puente | AF31: Sin datos | AG31: Sin datos | AH31: Gas | AI31: 1.92
B32: TOTAL | E32: =SUM(E6:E27)+SUM(E28:E31) -> 173979 | G32: 187.3904 | J32: Totales | K32: =SUM(K6:K31) -> 83580.76521 | L32: =SUM(L6:L31) -> 173979 | N32: 187.3904 | Q32: Totales | R32: =SUM(R6:R31) -> 83580.76521 | S32: =SUM(S6:S31) -> 173979 | U32: =SUM(U6:U31) -> 187.3904 | X32: Totales | Y32: =SUM(Y6:Y31) -> 83580.76521 | Z32: =SUM(Z6:Z31) -> 173979 | AB32: =SUM(AB6:AB31) -> 187.3904 | AE32: Totales | AF32: =SUM(AF6:AF31) -> 83580.76521 | AG32: =SUM(AG6:AG31) -> 173979 | AI32: =SUM(AI6:AI31) -> 187.3904

Sheet Datos
D2: Potencia Instalada (MW)
B3: Sistema | D3: 2014 | E3: 2015 | F3: 2016 | G3: 2017 | H3: 2018
B4: Cobija | C4: MW | D4: 20.61 | E4: 25 | F4: 25 | G4: 24.16 | H4: 22.56
B5: Riberalta | C5: MW | D5: 10.08 | E5: 10.08 | F5: 15.75 | G5: 16.05 | H5: 16.12
B6: San Ignacio de Velasco | C6: MW | D6: 8.204 | E6: 8.204 | F6: 8.204 | G6: 8.204 | H6: 7.84
B7: Las Misiones | C7: MW | D7: 17.15 | E7: 17.15 | F7: 21.35 | G7: 21.35 | H7: 21.35
B8: Valles Cruceños | C8: MW | D8: 7.64 | E8: 7.64 | F8: 9.64 | G8: 11.638 | H8: 11.638
B9: Camiri | C9: MW | D9: 7.25 | E9: 7.9 | F9: 9.06 | G9: 10.866 | H9: 12.674
B10: German Busch | C10: MW | D10: 21 | E10: 21 | F10: 21 | G10: 21 | H10: 23.2
B11: Bermejo | C11: MW | D11: 10.199 | E11: 9.23 | F11: 12.22 | G11: 15.419 | H11: 14.444
B12: Chiquitos | C12: MW | D12: 5.84 | E12: 5.84 | F12: 5.84 | G12: 5.84 | H12: 7.54
B13: Huacaraje | C13: MW | F13: 0.57 | G13: 0.695 | H13: 0.464
B14: Rosario del Yata | C14: MW | G14: 0.2 | H14: 0.9664
B15: El Sena | C15: MW | E15: 1.42 | F15: 2.216 | G15: 2.216 | H15: 2.216
D18: Potencia Efectiva a temperatura media (MW)
B19: Sistema | D19: 2014 | E19: 2015 | F19: 2016 | G19: 2017 | H19: 2018
B20: Cobija | C20: MW | D20: 15.96 | E20: 19.26 | F20: 19.66 | G20: 19.2 | H20: 19.5
B21: Riberalta | C21: MW | D21: 9.27 | E21: 9.27 | F21: 15.26 | G21: 15.71 | H21: 15.78
B22: San Ignacio de Velasco | C22: MW | D22: 7.101 | E22: 7.101 | F22: 7.101 | G22: 7.101 | H22: 6.792
B23: Las Misiones | C23: MW | D23: 15 | E23: 15 | F23: 19.05 | G23: 19.05 | H23: 19.05
B24: Valles Cruceños | C24: MW | D24: 6.48 | E24: 6.48 | F24: 8.13 | G24: 8.5 | H24: 9.56
B25: Camiri | C25: MW | D25: 6.5 | E25: 7.1 | F25: 8.25 | G25: 10 | H25: 11.75
B26: German Busch | C26: MW | D26: 17.4 | E26: 17.4 | F26: 17.4 | G26: 17.4 | H26: 19.1
B27: Bermejo | C27: MW | D27: 8.15 | E27: 7.35 | F27: 9.6 | G27: 12.4 | H27: 11.55
B28: Chiquitos | C28: MW | D28: 4.84 | E28: 4.84 | F28: 4.84 | G28: 4.84 | H28: 7.2
B29: Huacaraje | C29: MW | F29: 0.13 | G29: 0.648 | H29: 0.398
B30: Rosario del Yata | C30: MW | G30: 0.175 | H30: 0.77312
B31: El Sena | C31: MW | E31: 1.1 | F31: 1.3 | G31: 1.3 | H31: 1.3
D34: Generacion Bruta (MWh)
B35: Sistema | D35: 2014 | E35: 2015 | F35: 2016 | G35: 2017 | H35: 2018
B36: Cobija
B37: Cobija Planta Solar | C37: MWh | D37: 0 | E37: 4794.375501 | F37: 5627.8184 | G37: 5776.1256 | H37: 5319.8761
B38: Cobija Combustioble Fosil | C38: MWh | D38: 52004.8047 | E38: 56054.18129 | F38: 55734.79449 | G38: 56969.076 | H38: 57831.903
B39: Riberalta | C39: MWh | D39: 39754.1004 | E39: 44000 | F39: 47860 | G39: 49359.07 | H39: 54122.22
B40: San Ignacio de Velasco | C40: MWh | D40: 20118.833 | E40: 22009.939 | F40: 23362.836 | G40: 24446.847 | H40: 25906.172
B41: Las Misiones | C41: MWh | D41: 45834.74914 | E41: 51150.008 | F41: 55241.41 | G41: 59494.526 | H41: 58424.89577
B42: Valles Cruceños | C42: MWh | D42: 24962.853 | E42: 27356.741 | F42: 30774.99453 | G42: 33037.838 | H42: 34243.891
B43: Camiri | C43: MWh | D43: 26931.019 | E43: 29769.716 | F43: 31023.122 | G43: 32518.519 | H43: 33217.41659
B44: German Busch | C44: MWh | D44: 57328.465 | E44: 60886.548 | F44: 60284.14 | G44: 55369.353 | H44: 57411.821
B45: Bermejo | C45: MWh | D45: 17625.435 | E45: 24367.994 | F45: 25069.998 | G45: 27032.792 | H45: 28138.757
B46: Chiquitos | C46: MWh | D46: 16495.10006 | E46: 18492.52734 | F46: 19606.297 | G46: 21045.85406 | H46: 22087.9751
B47: Huacaraje | C47: MWh | F47: 190 | G47: 679.305 | H47: 680.3341417
B48: Rosario del Yata | C48: MWh | G48: 58.606 | H48: 171.513
B49: El Sena
B50: El Sena Planta Solar | C50: MWh | H50: 95.87
B51: El Sena Combustioble Fosil | C51: MWh | D51: 646.0049 | E51: 1248.1834 | F51: 1677.7594 | G51: 1881.0661 | H51: 2213.192
D54: Energia Vendida (MWh)
B55: Sistema | D55: 2014 | E55: 2015 | F55: 2016 | G55: 2017 | H55: 2018
B56: Cobija | C56: MWh | D56: 42283.49869 | E56: 48572.56787 | F56: 51457.802 | G56: 52482.94116 | H56: 55108.401
B57: Riberalta | C57: MWh | D57: 35106.71 | E57: 39792.533 | F57: 42339.17 | G57: 43252.69 | H57: 47213.73
B58: San Ignacio de Velasco | C58: MWh | D58: 17541.051 | E58: 19341.801 | F58: 20551.661 | G58: 21797.431 | H58: 22765.302
B59: Las Misiones | C59: MWh | D59: 37833.119 | E59: 41946.924 | F59: 46627.073 | G59: 48820.517 | H59: 52336.572
B60: Valles Cruceños | C60: MWh | D60: 21245.181 | E60: 23113.885 | F60: 25842.942 | G60: 27838.267 | H60: 28619.4
B61: Camiri | C61: MWh | D61: 23118.461 | E61: 25565.341 | F61: 26937.045 | G61: 27085.859 | H61: 26869.606
B62: German Busch | C62: MWh | D62: 49864.025 | E62: 55849.83 | F62: 55786.36 | G62: 50334.797 | H62: 52818.988
B63: Bermejo | C63: MWh | D63: 19097.197 | E63: 19975.205 | F63: 20153.143 | G63: 21583.881 | H63: 22919.561
B64: Chiquitos | C64: MWh | D64: 13815.353 | E64: 15456.422 | F64: 16493.128 | G64: 17568.087 | H64: 18401.253
B65: Huacaraje | C65: MWh | G65: 575.524 | H65: 596.267
B66: Rosario del Yata | C66: MWh | H66: 132.074
B67: El Sena | C67: MWh | D67: 327.1148 | E67: 869.546 | F67: 1342.3541 | G67: 1672.1506 | H67: 2105.635
D70: Cantidad usuarios
B71: Sistema | D71: 2014 | E71: 2015 | F71: 2016 | G71: 2017 | H71: 2018
B72: Cobija | D72: 13895 | E72: 14516 | F72: 15424 | G72: 15589 | H72: 17092
B73: Riberalta | D73: 17883 | E73: 19044 | F73: 19779 | G73: 20120 | H73: 21407
B74: San Ignacio de Velasco | D74: 8812 | E74: 9304 | F74: 10720 | G74: 11519 | H74: 12184
B75: Las Misiones | D75: 18188 | E75: 20295 | F75: 22711 | G75: 25616 | H75: 28263
B76: Valles Cruceños | D76: 18160 | E76: 20322 | F76: 21825 | G76: 22984 | H76: 23104
B77: Camiri | D77: 11277 | E77: 11944 | F77: 13230 | G77: 14167 | H77: 14957
B78: German Busch | D78: 8646 | E78: 9004 | F78: 9991 | G78: 10406 | H78: 10771
B79: Bermejo | D79: 10731 | E79: 11261 | F79: 11717 | G79: 12254 | H79: 12941
B80: Chiquitos | D80: 6760 | E80: 7040 | F80: 7747 | G80: 8138 | H80: 8470
B81: Huacaraje | F81: 406 | G81: 490 | H81: 505
B82: Rosario del Yata | H82: 148
B83: El Sena | D83: 238 | E83: 447 | F83: 647 | G83: 883 | H83: 976
D86: Consumo Combustible Fosil
B87: Sistema | D87: 2014 | E87: 2015 | F87: 2016 | G87: 2017 | H87: 2018
B88: Cobija | C88: Litros | D88: 13406.099 | E88: 14382.121 | F88: 14611.595 | G88: 14853.70102 | H88: 15908.519
B89: Riberalta | C89: Litros | D89: 11267.231 | E89: 15214.2 | F89: 14037.7 | G89: 14174.208 | H89: 15701.603
B90: San Ignacio de Velasco | C90: Litros | D90: 5569.661 | E90: 6107.582 | F90: 6427.6 | G90: 6754.024 | H90: 7250.985
B91: Las Misiones
B92: Las Misiones Gas Natural | C92: mpc | D92: 571963.428 | E92: 612920.549 | F92: 663158.386 | G92: 620081.935 | H92: 640147.5933
B93: Las Misiones Diesel | C93: Litros | D93: 116.316 | E93: 412.529 | F93: 579.412 | G93: 3507.278001 | H93: 3617.36598
B94: Valles Cruceños
B95: Valles Gas Natural | C95: mpc | D95: 284155.401 | E95: 313266.45 | F95: 353773.35 | G95: 355513.2846 | H95: 360015.7066
B96: Valles Diesel | C96: Litros | D96: 0 | E96: 0 | F96: 30.18 | G96: 1.38 | H96: 5.15
B97: Camiri
B98: Camiri Gas Natural | C98: mpc | D98: 294214.1403 | E98: 320543.5509 | F98: 324808.4193 | G98: 317579.2717 | H98: 339259.1858
B99: Camiri Diesel | C99: Litros | D99: 0 | E99: 26.829 | F99: 13.922 | G99: 0 | H99: 0
B100: German Busch | C100: mpc | D100: 744218.667 | E100: 784928.69 | F100: 795439.492 | G100: 748755.086 | H100: 787872.444
B101: Bermejo | C101: mpc | D101: 0 | E101: 282967.2 | F101: 292904.17 | G101: 368663.229 | H101: 401645.362
B102: Chiquitos | C102: mpc | D102: 178080.859 | E102: 202608.063 | F102: 217565.0922 | G102: 229197.2326 | H102: 238334.3366
B103: Huacaraje | C103: Litros | D103: 0 | E103: 0 | F103: 0 | G103: 284.651 | H103: 212.65
B104: Rosario del Yata | C104: Litros | D104: 0 | E104: 0 | F104: 0 | G104: 25.083 | H104: 79.09
B105: El Sena | C105: Litros | D105: 207.085 | E105: 380.248 | F105: 518.607001 | G105: 584.762 | H105: 697.834
D108: Demanda Maxima
B109: Sistema | D109: 2014 | E109: 2015 | F109: 2016 | G109: 2017 | H109: 2018
B110: Cobija | C110: MW | F110: 11.57 | G110: 11.45 | H110: 12.36
B111: Riberalta | C111: MW | F111: 8.922 | G111: 9.155 | H111: 9.824
B112: San Ignacio de Velasco | C112: MW | F112: 4.57945 | G112: 4.665586 | H112: 5.050678
B113: Las Misiones | C113: MW | F113: 10.15507 | G113: 11.06016641 | H113: 11.73985521
B114: Valles Cruceños | C114: MW | F114: 6.28572 | G114: 6.443231 | H114: 6.340804
B115: Camiri | C115: MW | F115: 6.075 | G115: 6.03993 | H115: 6.378
B116: German Busch | C116: MW | F116: 10.94204 | G116: 9.697378 | H116: 10.25271
B117: Bermejo | C117: MW | F117: 5.91 | G117: 5.96 | H117: 6.1
B118: Chiquitos | C118: MW | F118: 4.09624 | G118: 4.523989 | H118: 4.380218
B119: Huacaraje | C119: MW | G119: 0.169 | H119: 0.159
B120: Rosario del Yata | C120: MW | G120: 0.036 | H120: 0.048
B121: El Sena | C121: MW | F121: 0.431 | G121: 0.445 | H121: 0.673
